[Event "86th UKR-ch Men 2017"]
[Site "Zhytomyr"]
[Date "2017.12.16"]
[Round "10"]
[White "Grinev, Valeriy"]
[Black "Vypkhaniuk, Ihor"]
[Result "1/2-1/2"]
[ECO "E94"]
[WhiteElo "2409"]
[BlackElo "2336"]
[Annotator "NA"]
[PlyCount "132"]
[EventDate "2017.??.??"]
[EventType "tourn"]
[EventCountry "UKR"]
[SourceTitle "playchess.com"]
[Source "ChessBase"]
[SourceQuality "1"]
[TimeControl "40/5400+30:1800+30"]

1. c4 {[%emt 0:00:00]} g6 {[%emt 0:01:50]} 2. d4 {[%emt 0:00:01]} d6 {[%emt 0:00:21]} 3. e4 {[%emt 0:00:11]} Bg7 {[%emt 0:00:13]} 4. Nc3 {[%emt 0:00:10]} Nf6 {[%emt 0:00:09]} 5. Be2 {[%emt 0:00:09]} O-O {[%emt 0:00:08]} 6. Nf3 {[%emt 0:00:06]} e5 {[%emt 0:00:26]} 7. O-O {[%emt 0:00:10]} exd4 {[%emt 0:00:50]} 8. Nxd4 {[%emt 0:00:12]} Re8 {[%emt 0:00:04]} 9. f3 {[%emt 0:00:21]} Nc6 {[%emt 0:00:53]} 10. Be3 {[%emt 0:00:29]} Nh5 {[%emt 0:00:37]} 11. Qd2 {[%emt 0:00:38]} f5 {[%emt 0:01:02]} 12. Nxc6 {[%emt 0:00:33]} bxc6 {[%emt 0:00:22]} 13. Bg5 {[%emt 0:08:24]} Qd7 {[%emt 0:00:17]} 14. c5 {[%emt 0:07:46]} dxc5 {[%emt 0:20:36]} 15. Bc4+ {[%emt 0:20:32]} Kh8 16. Qxd7 {[%emt 0:00:28]} Bxd7 {[%emt 0:01:33]} 17. exf5 Bd4+ {[%emt 0:27:09]} 18. Kh1 {[%emt 0:00:37]} Kg7 $16 {[%emt 0:14:22]} (18... Rab8 $14) 19. Rad1 {[%emt 0:06:46]} gxf5 {[%emt 0:00:30]} 20. Ne2 {[%emt 0:00:40]} Kg6 {[%emt 0:04:01]} 21. Bc1 Be6 {[%emt 0:01:50]} 22. Bxe6 {[%emt 0:02:11]} Rxe6 {[%emt 0:00:01]} 23. Nxd4 {[%emt 0:00:14]} cxd4 {[%emt 0:00:02]} 24. Rxd4 {[%emt 0:00:15]} Nf6 {[%emt 0:01:43]} 25. Bd2 {[%emt 0:12:28]} Rd6 {[%emt 0:02:41]} 26. Bc3 Nd5 27. Rfd1 {[%emt 0:08:53]} Rb8 {[%emt 0:02:10]} 28. Kg1 {[%emt 0:04:11]} h5 {[%emt 0:08:48]} 29. R1d2 {[%emt 0:14:11]} f4 {[%emt 0:01:07]} 30. Ba5 {[%emt 0:01:44]} Re6 {[%emt 0:00:27]} 31. Rc2 Kf5 {[%emt 0:07:52]} 32. Kf2 {[%emt 0:04:38]} Rg8 33. Rdd2 {[%emt 0:08:58]} h4 {[%emt 0:02:13]} 34. h3 {[%emt 0:01:10]} Reg6 {[%emt 0:01:00]} 35. Kg1 {[%emt 0:00:07]} Re8 {[%emt 0:00:17]} 36. Re2 {[%emt 0:00:21]} Re3 {[%emt 0:00:34]} 37. Kf1 {[%emt 0:01:46]} Re5 {[%emt 0:02:13]} 38. Rxe5+ {[%emt 0:00:40]} Kxe5 {[%emt 0:00:01]} 39. Re2+ {[%emt 0:00:19]} Kd4 {[%emt 0:00:00]} 40. Be1 {[%emt 0:00:00]} Rh6 41. Rd2+ {[%emt 0:05:31]} Kc4 {[%emt 0:06:54]} 42. b3+ {[%emt 0:02:03]} Kb5 {[%emt 0:00:59]} 43. Bf2 a5 44. Rd4 {[%emt 0:01:05]} Rg6 {[%emt 0:11:24]} 45. Rc4 Ka6 {[%emt 0:01:17]} 46. Rc5 {[%emt 0:02:05]} Rd6 {[%emt 0:01:02]} 47. Bxh4 {[%emt 0:03:39]} Ne3+ {[%emt 0:00:44]} 48. Ke2 Nxg2 {[%emt 0:00:24]} 49. Bf2 {[%emt 0:01:08]} Re6+ {[%emt 0:02:28]} 50. Kd2 Rd6+ 51. Kc3 {[%emt 0:10:00]} Re6 {[%emt 0:02:14]} 52. Kb2 {[%emt 0:04:47]} Rh6 {[%emt 0:01:33]} 53. Rg5 {[%emt 0:04:04]} Nh4 {[%emt 0:05:03]} 54. Rg7 Kb7 55. Be1 {[%emt 0:00:59]} Rh5 {[%emt 0:01:28]} 56. Bd2 Nxf3 {[%emt 0:00:30]} 57. Bxf4 {[%emt 0:01:26]} Rxh3 {[%emt 0:00:32]} 58. Bxc7 {[%emt 0:00:00]} a4 {[%emt 0:01:36]} 59. bxa4 c5 {[%emt 0:00:56]} 60. a5 {[%emt 0:01:00]} Nd4 {[%emt 0:00:31]} 61. Bb6+ {[%emt 0:00:10]} Ka6 {[%emt 0:00:42]} 62. Rc7 {[%emt 0:01:41]} Rh2+ {[%emt 0:00:32]} 63. Kc1 {[%emt 0:00:32]} Rxa2 {[%emt 0:00:20]} 64. Kb1 {[%emt 0:00:32]} Ra4 {[%emt 0:01:14]} 65. Rxc5 {[%emt 0:01:01]} Nb3 {[%emt 0:00:36]} 66. Rh5 {[%emt 0:00:09]} Nxa5 {[%emt 0:00:15]} 1/2-1/2